bitfinex-derivatives/quotes_SOLF0:USTF0_20250413
["timestamp","ask_amount","ask_price","bid_price","bid_amount"]
[1744552309435,2.036,127.03,126.95,0.05525932]
[1744552309642,0.05524753,126.98,126.95,0.05525932]
[1744552309841,0.05524753,126.98,126.85,68.2331]
[1744552310037,623.31524753,126.98,126.77,623.26]
[1744552310244,4.0741,126.97,126.78,3.61729722]
[1744552310541,4.0741,126.97,126.79,4.325]
[1744552310744,2.1711,126.96,126.79,4.325]
[1744552310932,7.8813,126.93,126.79,4.325]
[1744552311243,2.1711,126.96,126.8,1.3715637]
[1744552311443,0.05646191,126.87,126.79,4.325]
[1744552311641,0.05646191,126.87,126.81,7.8887]
[1744552311840,2.1711,126.96,126.79,4.325]
[1744552312141,0.05456432,126.85,126.84,7.8869]
[1744552312341,2.1711,126.96,126.81,623.58]
[1744552312542,1.9807,127.03,126.82,1.57703832]
[1744552312744,6.2799,127.03,126.88,7.8844]
[1744552312933,6.2799,127.03,126.82,1.57703832]
[1744552313138,6.2799,127.03,126.88,62.0]
[1744552313334,6.2799,127.03,126.92,7.8817]
[1744552313533,0.05855627,126.97,126.94,0.05463268]
[1744552314042,6.2799,127.03,126.89,6.1539]
[1744552314241,0.05436817,126.97,126.94,0.05708297]
[1744552314640,6.2799,127.03,126.94,0.05708297]
[1744552314941,0.05654494,126.97,126.94,0.05708297]
[1744552315143,6.2799,127.03,126.84,6.0749]
[1744552315446,0.05934287,126.97,126.94,0.05834371]
[1744552315839,2.1701,127.03,126.84,6.0749]
[1744552316044,0.05813692,126.97,126.94,0.05718663]
[1744552316543,2.1701,127.03,126.89,623.72]
[1744552316738,0.05281667,126.97,126.96,7.8793]
[1744552316945,1.9891,127.09,126.95,1.99759212]
[1744552317141,1.9891,127.09,126.95,4.04419212]
[1744552317346,1.9891,127.09,126.96,62.0]
[1744552318045,7.8727,127.07,126.96,62.0]
[1744552318235,0.06055225,127.04,127.01,0.05306621]
[1744552318644,0.06055225,127.04,127.03,7.8751]
[1744552318844,4.1716,127.14,127.01,0.05149212]
[1744552319039,12.0404,127.14,127.06,7.8727]
[1744552319242,2.0338,127.15,126.97,623.78]
[1744552319443,2.0338,127.15,126.98,1.57505118]
[1744552319647,2.0338,127.15,127.08,7.872]
[1744552319948,2.0338,127.15,126.98,1.57505118]
[1744552320142,0.05597036,127.13,127.1,0.04969841]
[1744552320652,627.7736,127.23,127.06,2.0927]
[1744552320842,0.0503255,127.13,127.1,0.05180967]
[1744552321043,6.0274,127.23,127.1,0.05180967]
[1744552321238,6.0274,127.23,127.06,2.0927]
[1744552321847,2.0338,127.23,127.06,2.0927]
[1744552322049,7.8636,127.22,127.07,4.1793]
[1744552322250,0.05727149,127.16,127.13,0.05381839]
[1744552322450,623.68,127.29,127.13,0.05381839]
[1744552322652,2.0701,127.28,127.07,4.1793]
[1744552322951,7.8652,127.19,127.12,7.8693]
[1744552323251,2.0701,127.28,127.07,4.1793]
[1744552323550,7.8657,127.19,127.12,7.869]
[1744552323746,7.92500008,127.19,127.16,0.05265286]
[1744552324051,7.8664,127.17,127.16,0.05265286]
[1744552324252,0.05930008,127.19,127.16,0.05265286]
[1744552326756,7.92500008,127.19,127.16,0.05265286]
[1744552326955,7.91930008,127.19,127.07,2.1816]
[1744552327155,4.2543,127.18,127.07,2.1816]
[1744552327552,4.2543,127.18,126.99,2.1338]
[1744552327857,4.2543,127.18,127.0,4.2561]
[1744552328156,0.05666468,127.1,127.07,2.632e-05]
[1744552328546,7.8753,127.03,126.96,623.3]
[1744552328746,2.1709,127.09,126.96,623.3]
[1744552329045,7.8763,127.02,126.96,623.3]
[1744552329250,2.1709,127.09,126.96,623.3]
[1744552329451,0.05392603,127.0,126.98,0.0520745]
[1744552329850,2.1709,127.09,126.95,1.36854317]
[1744552330153,0.05585821,127.0,126.98,0.05384543]
[1744552330354,2.0357,127.08,126.93,6.394]
[1744552330655,0.05387446,127.0,126.98,0.05109723]
[1744552330856,0.05387446,127.0,126.9,623.38]
[1744552331053,623.38,127.04,126.86,7.61661835]
[1744552331251,5.26629694,127.03,126.77,623.38]
[1744552331452,5.26629694,127.03,126.8,2.1599]
[1744552331656,7.8823,126.92,126.87,7.8849]
[1744552331958,1.9834,127.02,126.8,2.1599]
[1744552332254,1.9834,127.02,126.88,0.05344746]
[1744552332755,1.9834,127.02,126.86,2.0681]
[1744552333051,7.8815,126.93,126.88,7.8842]
[1744552333755,1.9834,127.02,126.89,0.04964316]
[1744552333953,6.806e-05,126.92,126.89,0.04964316]
[1744552334154,71.11181112,127.03,126.89,2.106]
[1744552334355,7.8774,127.0,126.9,62.0]
[1744552334860,7.8774,127.0,126.94,7.8802]
[1744552335057,7.8774,127.0,126.9,62.0]
[1744552335356,0.05100943,126.98,126.96,0.05392029]
[1744552336257,0.05100943,126.98,126.89,2.106]
[1744552336757,7.8806,126.95,126.89,2.106]
[1744552337148,623.66,127.04,126.89,2.106]
[1744552337350,0.05502385,126.93,126.91,0.04961487]
[1744552337549,0.05502385,126.93,126.89,2.106]
[1744552337749,623.66,127.04,126.89,2.106]
[1744552337960,76.42209199,127.03,126.91,0.05497928]
[1744552338157,0.06047089,126.98,126.89,2.106]
[1744552338362,7.8786,126.98,126.96,0.05081676]
[1744552338657,0.05058776,126.95,126.89,2.106]
[1744552338853,5.32129303,127.02,126.96,0.05029053]
[1744552339157,5.32129303,127.02,126.89,2.106]
[1744552339362,0.05744732,127.0,126.98,0.05207474]
[1744552339559,7.8795,126.96,126.92,7.8818]
[1744552340051,7.8795,126.96,126.93,0.00584739]
[1744552340254,0.05260494,126.95,126.93,0.00584739]
[1744552340449,7.45986078,127.02,126.89,2.106]
[1744552340649,5.34056078,127.01,126.89,2.106]
[1744552340850,71.11181112,127.03,126.9,623.8]
[1744552341055,71.11181112,127.03,126.9,981.8]
[1744552341255,71.11181112,127.02,126.91,1.57591994]
[1744552341458,0.05619306,126.98,126.95,0.05749798]
[1744552341762,71.11181112,127.02,127.01,7.8763]
[1744552343361,67.81941112,127.02,127.01,7.8763]
[1744552343662,3.34251654,127.02,127.01,7.8763]
[1744552343861,3.34251654,127.02,127.01,15.7563]
[1744552344056,3.34251654,127.02,127.01,7.8763]
[1744552344256,1.654e-05,127.02,127.01,15.7563]
[1744552344458,0.05429935,127.03,127.01,7.29771393]
[1744552344661,0.05429935,127.03,127.0,62.05029418]
[1744552344964,0.05429935,127.03,127.02,7.8757]
[1744552345265,0.05429935,127.03,127.0,62.05029418]
[1744552345465,0.63658542,127.03,127.0,0.05029418]
[1744552345667,0.63658542,127.03,126.92,981.78]
[1744552345963,0.58228607,127.03,126.92,981.78]
[1744552346163,5.35293053,127.02,126.96,7.8789]
[1744552346364,0.58228607,127.03,126.92,981.78]
[1744552346866,0.05558242,126.99,126.96,0.0582131]
[1744552347062,0.05558242,126.99,126.98,7.8782]
[1744552351168,0.63786849,126.99,126.96,0.0582131]
[1744552351570,0.05558242,126.99,126.96,0.0582131]
[1744552351770,0.05558242,126.99,126.98,7.8782]
[1744552353570,8.242e-05,126.99,126.98,7.8782]
[1744552353773,5.36490621,127.08,127.02,7.8753]
[1744552353967,5.36490621,127.08,126.94,0.6993]
[1744552354170,7.8742,127.05,126.94,358.6993]
[1744552354368,0.58228607,127.08,126.94,358.6993]
[1744552354568,5.36482697,127.07,126.94,358.6993]
[1744552354769,0.05139624,127.02,127.0,0.05956807]
[1744552354968,0.58228607,127.07,127.01,7.8763]
[1744552355169,0.0507633,127.02,127.01,7.8763]
[1744552355369,0.58228607,127.07,127.0,7.8767]
[1744552355568,0.58228607,127.07,127.03,0.05860484]
[1744552355768,7.92777852,127.05,126.94,358.6993]
[1744552355968,7.8743,127.05,126.94,358.6993]
[1744552356171,8.45658607,127.05,127.01,7.876]
[1744552356572,7.8746,127.04,127.01,7.876]
[1744552356870,0.05129288,127.04,127.01,0.05913033]
[1744552357067,7.8771,127.0,126.97,7.29611393]
[1744552357267,2.0178,127.03,126.93,62.0]
[1744552357573,7.8762,127.02,126.93,62.0]
[1744552357774,2.0178,127.03,126.93,62.0]
[1744552358173,0.05273979,126.99,126.97,0.0521622]
[1744552358771,0.05273979,126.99,126.98,7.8779]
[1744552359670,0.05273979,126.99,126.97,0.0521622]
[1744552359872,7.93273979,126.99,126.9,358.0]
[1744552360074,2.0178,127.03,126.91,9.45801994]
[1744552360373,5.37346586,127.02,126.91,1.57591994]
[1744552360675,7.8786,126.98,126.94,7.8802]
[1744552360875,2.0178,127.03,126.94,7.8802]
[1744552361074,0.05594889,126.97,126.95,0.02992187]
[1744552361272,5.37500694,126.96,126.81,0.8134]
[1744552361575,7.47180694,126.95,126.84,1.37083432]
[1744552361777,5.37500694,126.94,126.73,0.8134]
[1744552361976,623.78,126.93,126.77,1.37191516]
[1744552362175,5.37500694,126.92,126.78,623.86]
[1744552362377,0.06014882,126.86,126.78,623.86]
[1744552362770,625.9352,126.93,126.84,7.8865]
[1744552362771,7.8833,126.9,126.84,7.8865]
[1744552362977,2.1552,126.93,126.8,0.8134]
[1744552363370,2.0968,126.95,126.8,3.76214266]
[1744552363573,2.0968,126.95,126.81,1.57716268]
[1744552363775,9.977,126.95,126.88,7.8839]
[1744552363973,9.977,126.95,126.82,2.0925]
[1744552364176,0.05301972,126.93,126.9,0.0574231]
[1744552364371,2.1552,126.98,126.93,7.8812]
[1744552364673,0.05015719,126.97,126.9,0.05139163]
[1744552364871,0.05015719,126.97,126.87,981.86]
[1744552365075,0.05253738,126.95,126.91,0.05877252]
[1744552365272,4.0857,127.03,126.88,0.8134]
[1744552365475,7.8771,127.0,126.94,7.8802]
[1744552365972,0.05267168,126.97,126.92,7.8815]
[1744552366177,0.05267168,126.97,126.87,1.5764168]
[1744552366378,5.36596496,127.02,126.87,359.5764168]
[1744552366677,7.8778,126.99,126.93,7.8807]
[1744552366873,4.0857,127.03,126.88,623.94]
[1744552367175,0.05422855,126.97,126.89,62.0]
[1744552367367,4.0857,127.03,126.9,0.8134]
[1744552367571,5.37704799,127.02,126.9,0.8134]
[1744552367769,0.05499052,126.94,126.9,0.8134]
[1744552367969,4.0857,127.03,126.9,0.8134]
[1744552368170,0.05285569,126.93,126.9,0.8134]
[1744552368371,7.878,126.99,126.9,0.8134]
[1744552368578,4.0857,127.03,126.9,0.8134]
[1744552368775,7.8775,127.0,126.9,0.8134]
[1744552368980,4.0857,127.03,126.9,0.8134]
[1744552369281,5.38328227,127.02,126.9,0.8134]
[1744552369475,7.8765,127.01,126.97,7.8786]
[1744552369681,4.0857,127.03,126.97,7.8786]
[1744552369872,5.38881761,127.02,126.97,7.8786]
[1744552370075,0.05004952,127.0,126.98,7.878]
[1744552370278,0.05004952,127.0,126.99,0.05594651]
[1744552370481,5.38881761,127.02,126.99,0.05594651]
[1744552370678,0.05493343,127.01,126.99,0.05594651]
[1744552374474,7.93133343,127.01,126.99,0.05594651]
[1744552374678,0.05493343,127.01,126.92,358.0]
[1744552374885,4.0857,127.03,126.95,7.8801]
[1744552375188,4.0857,127.03,126.92,358.0]
[1744552375387,7.8781,126.99,126.94,7.8801]
[1744552375583,7.8781,126.99,126.92,358.0]
[1744552375987,0.05580642,126.97,126.92,420.0]
[1744552376586,0.05580642,126.97,126.92,358.0]
[1744552376985,0.05580642,126.97,126.87,1.5764168]
[1744552377286,5.40968547,126.96,126.87,1.5764168]
[1744552377479,0.05303488,126.94,126.87,1.5764168]
[1744552377683,7.8824,126.92,126.87,1.5764168]
[1744552377982,2.0125,126.95,126.86,359.37042944]
[1744552378184,0.05234191,126.91,126.86,359.37042944]
[1744552378585,0.05234191,126.91,126.89,7.8834]
[1744552379093,0.05234191,126.91,126.86,359.37042944]
[1744552379594,0.05234191,126.91,126.87,62.0]
[1744552379791,0.05234191,126.91,126.9,7.8832]
[1744552379986,0.05234191,126.91,126.87,62.0]
[1744552380991,0.05234191,126.91,126.88,0.8123]
[1744552381186,0.05234191,126.91,126.86,359.37094233]
[1744552381996,0.02733467,126.91,126.9,7.8832]
[1744552382294,5.40841164,126.97,126.87,2.12437535]
[1744552382490,7.8786,126.98,126.87,360.0913]
[1744552382887,2.0976,127.02,126.87,360.0913]
[1744552383192,2.0976,127.02,126.95,7.8797]
[1744552383193,7.8778,126.99,126.95,7.8797]
[1744552383393,0.05522385,126.96,126.95,7.8797]
[1744552383697,0.05522385,126.96,126.9,623.98]
[1744552383899,0.05522385,126.96,126.94,0.0536533]
[1744552385095,0.05522385,126.96,126.95,7.8801]
[1744552387298,0.05522385,126.96,126.94,0.0536533]
[1744552387498,0.05522385,126.96,126.95,62.0]
[1744552388099,0.05522385,126.96,126.95,69.8801]
[1744552390401,0.05522385,126.96,126.95,7.8801]
[1744552393502,0.05522385,126.96,126.95,69.8801]
[1744552394102,0.05522385,126.96,126.95,7.8801]
[1744552394803,2.385e-05,126.96,126.95,7.8801]
[1744552397106,2.385e-05,126.96,126.95,69.8801]
[1744552397903,2.385e-05,126.96,126.95,71.9822]
[1744552398209,2.385e-05,126.96,126.95,695.8022]
[1744552400308,2.385e-05,126.96,126.95,693.7001]
[1744552400509,2.385e-05,126.96,126.95,7.8801]
[1744552403612,2.385e-05,126.96,126.95,69.8801]
[1744552408818,2.385e-05,126.96,126.94,7.9340533]
[1744552409115,2.385e-05,126.96,126.94,0.0536533]
[1744552409318,2.385e-05,126.96,126.94,7.9341533]
[1744552409714,2.385e-05,126.96,126.92,1.37024058]
[1744552410013,5.43178761,126.95,126.91,7.8823]
[1744552410209,5.43178761,126.94,126.91,7.8823]
[1744552410517,7.8808,126.94,126.9,7.8829]
[1744552410718,5.42873508,126.93,126.9,7.8829]
[1744552410911,0.05795817,126.93,126.91,0.05607824]
[1744552411415,7.93955817,126.93,126.91,0.05607824]
[1744552411621,0.05795817,126.93,126.89,0.28131]
[1744552412620,0.05795817,126.93,126.92,7.8819]
[1744552415520,0.05795817,126.93,126.9,62.0]
[1744552415726,0.05795817,126.93,126.89,0.28131]
[1744552415918,5.4257285,126.92,126.89,0.28131]
[1744552416115,15.4205285,126.92,126.87,7.8848]
[1744552416321,5.42284346,126.91,126.81,358.0]
[1744552416524,5.42284346,126.9,126.81,358.0]
[1744552416823,0.05817072,126.87,126.84,1.37137453]
[1744552417020,7.072e-05,126.87,126.84,358.0]
[1744552417215,7.072e-05,126.87,126.82,1.57703832]
[1744552417719,7.072e-05,126.87,126.86,7.8857]
[1744552418725,7.072e-05,126.87,126.86,69.8857]
[1744552421516,7.072e-05,126.87,126.86,7.8857]
[1744552421721,7.072e-05,126.87,126.85,7.93668589]
[1744552421926,7.072e-05,126.87,126.85,0.05078589]
[1744552422224,7.072e-05,126.87,126.86,7.8857]
[1744552424530,7.072e-05,126.87,126.86,69.8857]
[1744552424729,6.2288,127.02,126.86,432.14865421]
[1744552425026,5.42083931,127.01,126.87,26.7766556]
[1744552425229,5.42083931,127.0,126.97,7.8783]
[1744552425427,14.1049,127.02,126.97,7.8783]
[1744552425623,5.42191176,127.01,126.97,7.8783]
[1744552425823,5.47706388,127.01,126.98,0.05524593]
[1744552426024,5.42137533,127.0,126.98,0.05524593]
[1744552426330,5.42137533,127.0,126.98,7.93334593]
[1744552426529,5.42137533,127.0,126.98,0.05524593]
[1744552427032,0.05515212,127.01,126.98,0.05524593]
[1744552427631,0.05515212,127.01,127.0,7.877]
[1744552427829,0.05515212,127.01,126.98,0.05524593]
[1744552428031,0.05515212,127.01,126.98,69.93344593]
[1744552428231,0.05515212,127.01,126.98,7.93344593]
[1744552428532,0.05515212,127.01,126.98,0.05524593]
[1744552430332,5.42212527,127.0,126.98,0.05524593]
[1744552430829,0.05515212,127.01,126.98,7.93324593]
[1744552431736,0.05515212,127.01,126.98,0.05524593]
[1744552433636,0.05515212,127.01,126.98,7.93304593]
[1744552435335,0.05515212,127.01,126.98,0.05524593]
[1744552435534,5.41640423,127.0,126.93,1.37040246]
[1744552435733,6.2288,127.02,126.93,359.37040246]
[1744552435928,5.41608217,127.01,126.93,359.37040246]
[1744552436130,7.40998217,127.01,126.93,359.37040246]
[1744552436326,1.9939,127.01,126.98,7.8782]
[1744552436531,2.04569578,127.01,126.93,359.37040246]
[1744552436730,5.41537702,127.0,126.93,359.37040246]
[1744552436938,0.06042,126.98,126.97,7.8784]
[1744552437237,0.06042,126.98,126.93,1.37040246]
[1744552437836,0.06042,126.98,126.9,62.0]
[1744552438136,5.4136991,126.97,126.9,62.0]
[1744552438432,0.0568597,126.95,126.9,420.0]
[1744552438736,1.9939,127.01,126.91,625.17056437]
[1744552439133,4.0738,127.02,126.92,2.41129577]
[1744552439332,4.0738,127.02,126.92,360.41129577]
[1744552439637,4.0738,127.02,126.99,7.8776]
[1744552440036,4.12389206,127.02,126.99,7.8776]
[1744552440239,4.12389206,127.02,126.99,0.0565431]
[1744552440536,5.41349882,127.01,126.92,359.57579577]
[1744552440835,2.0681,127.01,126.92,359.57579577]
[1744552441338,4.0738,127.02,126.92,359.57579577]
[1744552441735,0.05262858,126.98,126.92,359.57579577]
[1744552442038,0.05262858,126.98,126.97,7.8788]
[1744552444235,0.05262858,126.98,126.97,69.8788]
[1744552444542,0.05262858,126.98,126.97,7.8788]
[1744552447341,0.05262858,126.98,126.97,69.8788]
[1744552448442,0.05262858,126.98,126.96,7.8792]
[1744552448643,0.05262858,126.98,126.94,1.37013268]
[1744552448939,0.05262858,126.98,126.96,7.8791]
[1744552449142,0.05262858,126.98,126.94,1.37013268]
[1744552449744,0.05262858,126.98,126.95,7.8797]
[1744552450151,0.05262858,126.98,126.96,7.8791]
[1744552450350,0.05262858,126.98,126.94,1.37013268]
[1744552450853,0.05262858,126.98,126.95,7.8797]
[1744552451150,0.05262858,126.98,126.94,1.37013268]
[1744552451351,0.05262858,126.98,126.91,685.8]
[1744552451548,7.8789,126.97,126.93,7.8809]
[1744552451851,0.05262858,126.98,126.91,625.17069933]
[1744552452150,2.0962,126.96,126.88,358.0]
[1744552452350,7.44360768,126.95,126.85,623.76]
[1744552452543,5.40900768,126.94,126.87,1.37088832]
[1744552452746,0.05061722,126.91,126.87,1.37088832]
[1744552453147,0.05061722,126.91,126.85,623.76]
[1744552453353,0.05061722,126.91,126.8,358.0]
[1744552453744,7.8837,126.9,126.84,7.8864]
[1744552453943,0.05037841,126.87,126.84,7.8864]
[1744552454147,0.05037841,126.87,126.8,358.0]
[1744552454348,7.8835,126.9,126.8,358.0]
[1744552454544,0.05910647,126.85,126.8,358.0]
[1744552454743,0.05910647,126.85,126.8,420.0]
[1744552454951,70.22,126.93,126.8,420.0]
[1744552455151,2.1542,126.94,126.8,358.0]
[1744552455152,4.784e-05,126.84,126.8,358.0]
[1744552455352,10.0351,126.94,126.8,358.0]
[1744552455551,5.40039127,126.93,126.8,358.0]
[1744552455955,13.28169127,126.93,126.8,359.57728706]
[1744552456154,2.1542,126.94,126.8,359.57728706]
[1744552456356,0.05516276,126.88,126.85,0.05905375]
[1744552456654,2.1542,126.94,126.86,70.24]
[1744552457055,10.035,126.94,126.86,70.24]
[1744552457256,2.1542,126.94,126.86,70.24]
[1744552457553,2.1542,126.94,126.92,7.8818]
[1744552457954,2.20855875,126.94,126.92,7.8818]
[1744552458159,2.20855875,126.94,126.93,7.8813]
[1744552458352,0.05435875,126.94,126.93,7.8813]
[1744552460655,0.05435875,126.94,126.92,7.94193626]
[1744552460857,0.05435875,126.94,126.92,0.06013626]
[1744552461254,0.05435875,126.94,126.93,7.8813]
[1744552465257,0.05435875,126.94,126.92,70.30013626]
[1744552465860,0.05435875,126.94,126.93,7.8813]
[1744552466653,70.931373,127.1,126.93,7.88]
[1744552466851,2.1927,127.05,126.92,428.24]
[1744552467049,5.41172595,127.04,126.92,428.24]
[1744552467550,13.28652595,127.04,126.92,428.24]
[1744552467752,7.8748,127.04,126.99,7.8772]
[1744552468158,0.0572212,127.03,126.98,68.58]
[1744552468353,0.0572212,127.03,127.0,0.05508098]
[1744552468762,0.0572212,127.03,127.0,7.93168098]
[1744552469364,0.0572212,127.03,127.0,7.93178098]
[1744552470159,0.0572212,127.03,127.02,7.8757]
[1744552471861,2.1389,127.1,127.0,0.05508098]
[1744552472256,2.1389,127.1,127.0,2.1381]
[1744552472559,2.1389,127.1,127.07,7.8721]
[1744552472761,2.1389,127.1,127.04,68.56]
[1744552472956,2.1389,127.1,127.07,7.92443702]
[1744552473165,2.19644915,127.1,127.07,7.92443702]
[1744552473562,2.19644915,127.1,127.08,7.8719]
[1744552473959,0.05754915,127.1,127.07,0.05213702]
[1744552474868,0.05754915,127.1,127.08,7.8716]
[1744552476365,0.05754915,127.1,127.07,0.05213702]
[1744552476863,0.05754915,127.1,127.07,7.92473702]
[1744552477060,0.05754915,127.1,127.07,0.05213702]
[1744552477365,0.05754915,127.1,127.07,7.92443702]
[1744552478666,7.92854915,127.1,127.07,0.05213702]
[1744552479062,0.05754915,127.1,127.07,0.05213702]
[1744552479267,0.05754915,127.1,127.07,7.92433702]
[1744552479565,0.05754915,127.1,127.07,0.05213702]
[1744552481068,0.05754915,127.1,127.08,7.8716]
[1744552481469,0.05754915,127.1,127.07,0.05213702]
[1744552482470,7.92864915,127.1,127.07,0.05213702]
[1744552483171,0.05754915,127.1,127.07,0.05213702]
[1744552483370,0.05754915,127.1,127.04,68.56]
[1744552483767,0.05754915,127.1,127.04,76.4342]
[1744552483973,0.05754915,127.1,126.99,66.82]
[1744552484173,7.871,127.1,127.06,7.8728]
[1744552484471,0.0595093,127.06,127.03,0.05333604]
[1744552484672,7.871,127.1,126.99,66.82]
[1744552484872,0.05255779,127.06,127.05,7.8738]
[1744552485262,7.871,127.1,127.04,0.05398049]
[1744552485464,7.8714,127.09,127.05,7.8735]
[1744552485667,4.0144,127.13,127.04,0.05398049]
[1744552485868,0.0550449,127.08,127.0,2.109]
[1744552486063,4.0144,127.13,127.0,2.109]
[1744552486265,0.05242811,127.05,126.99,68.18959345]
[1744552486477,5.38745224,127.12,127.05,0.05427545]
[1744552486670,7.873,127.07,127.02,7.8754]
[1744552487264,7.8739,127.05,127.03,0.05842593]
[1744552487466,0.05583759,127.06,127.03,0.05842593]
[1744552487668,4.0144,127.13,127.03,7.8751]
[1744552487869,0.05656334,127.06,127.03,7.93026821]
[1744552488069,7.8721,127.08,126.99,68.18988998]
[1744552488280,0.0524762,127.06,127.03,0.05944296]
[1744552488681,0.0524762,127.06,127.03,7.93424296]
[1744552488980,0.0524762,127.06,127.03,0.05944296]
[1744552489181,0.0524762,127.06,127.03,7.93414296]
[1744552489877,0.0524762,127.06,127.03,0.05944296]
[1744552491178,0.0524762,127.06,127.05,7.8739]
[1744552491480,0.0524762,127.06,127.03,0.05944296]
[1744552491784,0.0524762,127.06,127.04,7.874]
[1744552492284,0.0524762,127.06,127.03,7.93424296]
[1744552493679,0.0524762,127.06,127.03,0.05944296]
[1744552494884,7.9260762,127.06,127.03,0.05944296]
[1744552495380,7.8742,127.05,127.03,0.05944296]
[1744552495581,2.0215,127.05,126.99,66.82]
[1744552495780,2.0215,127.05,126.99,74.6973]
[1744552496085,2.0215,127.05,126.99,66.82]
[1744552496787,0.06042975,127.03,127.01,7.93088082]
[1744552497187,0.06042975,127.03,127.01,0.05488082]
[1744552498092,7.93562975,127.03,127.01,0.05488082]
[1744552498292,0.06042975,127.03,127.01,0.05488082]
[1744552498697,7.93592975,127.03,127.01,0.05488082]
[1744552499883,7.8757,127.02,127.01,0.05488082]
[1744552500090,0.06042975,127.03,126.95,63.52]
[1744552500290,2.0215,127.05,126.95,63.52]
[1744552500487,7.8787,126.98,126.94,7.8806]
[1744552500692,689.1943,127.04,126.91,63.52]
[1744552500992,5.39423429,127.03,126.92,7.8816]
[1744552501181,0.05040721,126.99,126.96,0.0570297]
[1744552501380,0.05040721,126.99,126.97,7.8788]
[1744552501579,0.05040721,126.99,126.91,63.52]
[1744552501782,0.05040721,126.99,126.97,0.05774787]
[1744552501989,5.39938208,127.03,126.91,63.52]
[1744552502183,0.05095503,126.99,126.97,0.0550036]
[1744552503188,0.05095503,126.99,126.98,7.8782]
[1744552503388,7.8747,127.04,126.97,63.5750036]
[1744552503589,2.0215,127.05,126.97,63.5750036]
[1744552503790,9.8956,127.05,127.0,7.8766]
[1744552504382,2.0215,127.05,126.97,63.52]
[1744552504590,0.0554119,127.04,127.01,0.05472754]
[1744552504991,0.0554119,127.04,127.02,7.8756]
[1744552505388,0.0554119,127.04,127.01,0.05472754]
[1744552505588,0.0554119,127.04,127.02,7.8751]
[1744552506193,0.0554119,127.04,127.03,7.8751]
[1744552508293,0.0554119,127.04,127.01,62.05472754]
[1744552508690,0.0554119,127.04,127.01,0.05472754]
[1744552509291,0.0554119,127.04,127.01,7.93072754]
[1744552509795,0.0554119,127.04,127.01,0.05472754]
[1744552509996,5.41965126,127.03,127.01,0.05472754]
[1744552510895,13.29515126,127.03,127.01,0.05472754]
[1744552511195,5.41965126,127.02,127.01,0.05472754]
[1744552511396,5.41965126,127.02,126.97,63.52]
[1744552511587,5.41965126,127.01,126.97,63.52]
[1744552511994,2.1474,127.02,126.97,63.52]
[1744552512490,0.0499633,127.01,126.98,0.05142911]
[1744552513294,0.0499633,127.01,127.0,7.877]
[1744552516497,0.0499633,127.01,126.98,0.05142911]
[1744552516893,5.47555901,127.01,126.98,0.05142911]
[1744552517091,0.0499633,127.01,126.99,61.86]
[1744552517294,2.0109,127.08,126.99,61.86]
[1744552517490,2.0681,127.07,126.99,61.86]
[1744552517696,9.9409,127.07,127.02,7.8751]
[1744552518193,2.0681,127.07,127.01,7.8761]
[1744552518395,0.05170908,127.06,127.03,0.05587684]
[1744552518696,0.05170908,127.06,127.03,7.93057684]
[1744552519594,0.05170908,127.06,127.04,7.8745]
[1744552521001,0.05170908,127.06,127.03,7.93057684]
[1744552521196,0.05170908,127.06,127.03,0.05587684]
[1744552521602,0.05170908,127.06,127.03,7.93057684]
[1744552521796,0.05170908,127.06,127.03,0.05587684]
[1744552522100,0.05170908,127.06,127.03,7.93057684]
[1744552522804,0.05170908,127.06,127.04,7.8744]
[1744552523199,0.05170908,127.06,127.03,0.05587684]
[1744552523601,0.05170908,127.06,127.03,7.93047684]
[1744552524107,0.05170908,127.06,127.03,0.05587684]
[1744552524908,0.05170908,127.06,127.05,7.8739]
[1744552527809,20.05024111,127.14,127.05,60.06]
[1744552528109,75.168173,127.18,127.06,2.044]
[1744552528316,77.220473,127.18,127.06,2.4895]
[1744552528710,77.220473,127.18,127.07,62.0]
[1744552528912,0.05585937,127.13,127.11,0.05054378]
[1744552529118,70.931373,127.18,127.17,7.8664]
[1744552529613,70.931373,127.18,127.16,7.8668]
[1744552530209,70.931373,127.18,127.17,67.9064]
[1744552530410,70.98217841,127.18,127.17,67.9064]
[1744552531313,70.98217841,127.18,127.17,60.04]